fUST/lending_fUST_20241227
["ID","MTS","AMOUNT","RATE_DAILY","PERIOD"]
[346731121,1735254632475,-500.0,0.00016598,2]
[346731123,1735254632485,-500.0,0.00016598,2]
[346731125,1735254632495,-500.0,0.00016598,2]
[346731128,1735254632506,-500.0,0.00016598,2]
[346731130,1735254632516,-500.0,0.00016598,2]
[346731132,1735254632527,-755.37,0.00016598,2]
[346731134,1735254632541,-500.0,0.00016598,2]
[346731136,1735254632553,-500.0,0.00016598,2]
[346731137,1735254632564,-500.0,0.00016598,2]
[346731138,1735254632574,-502.0979328,0.00016598,2]
[346731139,1735254632583,-500.0,0.00016598,2]
[346731140,1735254632592,-814.49,0.00016598,2]
[346731141,1735254632602,-526.07,0.00016598,2]
[346731142,1735254632613,-464.30781795,0.00016598,2]
[346731143,1735254632622,-504.25,0.00016598,2]
[346731144,1735254632632,-500.0,0.00016598,2]
[346731150,1735254632766,-1158.56,0.00016598,2]
[346731152,1735254632779,-311.6600258,0.00016598,2]
[346731154,1735254632789,-500.0,0.00016598,2]
[346731156,1735254632798,-500.0,0.00016598,2]
[346731158,1735254632808,-500.0,0.00016598,2]
[346731160,1735254632818,-500.0,0.00016598,2]
[346731162,1735254632828,-168.0,0.00016598,2]
[346731164,1735254632837,-1115.44,0.00016598,2]
[346731166,1735254632847,-500.0,0.00016598,2]
[346731168,1735254632857,-500.0,0.00016598,2]
[346731170,1735254632866,-500.0,0.00016598,2]
[346731172,1735254632876,-500.0,0.00016598,2]
[346731174,1735254632886,-500.0,0.00016598,2]
[346731176,1735254632896,-500.0,0.00016598,2]
[346731178,1735254632906,-500.0,0.00016598,2]
[346731180,1735254632916,-500.0,0.00016598,2]
[346731182,1735254632925,-500.0,0.00016598,2]
[346731184,1735254632935,-500.0,0.00016598,2]
[346731186,1735254632944,-500.0,0.00016598,2]
[346731188,1735254632953,-500.0,0.00016598,2]
[346731190,1735254632962,-500.0,0.00016598,2]
[346731192,1735254632971,-733.31,0.00016598,2]
[346731194,1735254632981,-500.0,0.00016598,2]
[346731196,1735254632990,-500.0,0.00016598,2]
[346731198,1735254633000,-500.0,0.00016598,2]
[346731200,1735254633009,-500.0,0.00016598,2]
[346731202,1735254633018,-500.0,0.00016598,2]
[346731204,1735254633028,-185.55,0.00016598,2]
[346731206,1735254633038,-500.0,0.00016598,2]
[346731208,1735254633048,-500.0,0.00016598,2]
[346731210,1735254633058,-500.0,0.00016598,2]
[346731212,1735254633068,-500.0,0.00016598,2]
[346731214,1735254633077,-945.01,0.00016598,2]
[346731216,1735254633087,-500.0,0.00016598,2]
[346731218,1735254633097,-1040.21,0.00016598,2]
[346731220,1735254633106,-500.0,0.00016598,2]
[346731222,1735254633116,-500.0,0.00016598,2]
[346731224,1735254633125,-500.0,0.00016598,2]
[346731226,1735254633134,-500.0,0.00016598,2]
[346731228,1735254633144,-500.0,0.00016598,2]
[346731230,1735254633153,-601.35,0.00016598,2]
[346731232,1735254633162,-500.0,0.00016598,2]
[346731234,1735254633171,-500.0,0.00016598,2]
[346731236,1735254633180,-1667.22,0.00016598,2]
[346731238,1735254633189,-830.74024436,0.00016598,2]
[346731246,1735254633257,-4662.99927386,0.00016598,2]
[346731250,1735254633289,500.0,0.00015697,2]
[346731254,1735254633321,365.67281064,0.00015971,2]
[346731704,1735254637933,-846.93,0.00015697,2]
[346731706,1735254637942,-134.32718936,0.00015971,2]
[346731708,1735254637952,-494.7183018,0.00015971,2]
[346731711,1735254637966,-352.2116982,0.00015971,2]
[346731713,1735254637975,-500.0,0.00016245,2]
[346731715,1735254637984,-846.93,0.00016245,2]
[346731717,1735254637994,-500.0,0.00016519,2]
[346731719,1735254638004,-846.93,0.00016519,2]
[346731721,1735254638013,-905.63,0.00016597,2]
[346731722,1735254638023,-31325.69048178,0.00016598,2]
[346731724,1735254638032,-500.0,0.00016598,2]
[346731725,1735254638045,-501.17,0.00016598,2]
[346731727,1735254638054,-500.0,0.00016598,2]
[346731729,1735254638067,-2813.0,0.00016598,2]
[346731730,1735254638076,-500.0,0.00016598,2]
[346731732,1735254638086,-764.91,0.00016598,2]
[346731733,1735254638095,-500.0,0.00016598,2]
[346731735,1735254638105,-500.0,0.00016598,2]
[346731736,1735254638115,-500.0,0.00016598,2]
[346731738,1735254638125,-818.48,0.00016598,2]
[346731739,1735254638135,-500.0,0.00016598,2]
[346731741,1735254638144,-979.38,0.00016598,2]
[346731742,1735254638154,-1536.45,0.00016598,2]
[346731744,1735254638163,-1085.41,0.00016598,2]
[346731745,1735254638172,-1598.87,0.00016598,2]
[346731747,1735254638182,-500.0,0.00016598,2]
[346731748,1735254638191,-500.0,0.00016598,2]
[346731750,1735254638201,-1550.25,0.00016598,2]
[346731752,1735254638211,-500.0,0.00016598,2]
[346731753,1735254638220,-178.75816464,0.00016598,2]
[346731755,1735254638229,-500.0,0.00016598,2]
[346731756,1735254638239,-500.0,0.00016598,2]
[346731758,1735254638249,-500.0,0.00016598,2]
[346731759,1735254638258,-500.0,0.00016598,2]
[346731761,1735254638272,-500.0,0.00016598,2]
[346731763,1735254638282,-500.0,0.00016598,2]
[346731765,1735254638294,-770.58,0.00016598,2]
[346731766,1735254638303,-574.58,0.00016598,2]
[346731768,1735254638314,-385.28691818,0.00016598,2]
[346731770,1735254638323,-500.0,0.00016598,2]
[346731771,1735254638331,-500.0,0.00016598,2]
[346731773,1735254638345,-500.0,0.00016598,2]
[346731775,1735254638354,-500.0,0.00016598,2]
[346731776,1735254638365,-520.11034646,0.00016598,2]
[346731778,1735254638374,-842.18,0.00016598,2]
[346731780,1735254638383,-504.04148761,0.00016598,2]
[346731781,1735254638392,-501.05345712,0.00016598,2]
[346731783,1735254638401,-500.0,0.00016598,2]
[346731785,1735254638411,-1175.05,0.00016598,2]
[346731786,1735254638420,-1695.53268663,0.000166,2]
[346731788,1735254638429,-500.0,0.00016643,2]
[346731789,1735254638439,-500.0,0.00016644,2]
[346731791,1735254638448,-500.0,0.00016644,2]
[346731793,1735254638457,-500.0,0.00016644,2]
[346731794,1735254638466,-500.0,0.00016644,2]
[346731796,1735254638475,-500.0,0.00016644,2]
[346731798,1735254638485,-726.73,0.00016644,2]
[346731799,1735254638494,-500.0,0.00016644,2]
[346731801,1735254638503,-500.0,0.00016644,2]
[346731802,1735254638511,-500.0,0.00016644,2]
[346731803,1735254638520,-500.0,0.00016644,2]
[346731804,1735254638529,-500.0,0.00016644,2]
[346731806,1735254638539,-500.0,0.00016644,2]
[346731807,1735254638548,-500.0,0.00016644,2]
[346731809,1735254638557,-500.0,0.00016644,2]
[346731816,1735254638665,-500.0,0.00016644,2]
[346731818,1735254638680,-500.0,0.00016644,2]
[346731819,1735254638690,-478.57681976,0.00016644,2]
[346731821,1735254638700,-585.74,0.00016644,2]
[346731823,1735254638709,-500.0,0.00016644,2]
[346731824,1735254638719,-1473.92,0.00016644,2]
[346731826,1735254638728,-500.0,0.00016644,2]
[346731827,1735254638738,-245.51700711,0.00016644,2]
[346731829,1735254638747,-976.32,0.00016644,2]
[346731830,1735254638756,-1448.31,0.00016644,2]
[346731832,1735254638766,-847.41,0.00016644,2]
[346731834,1735254638775,-691.59,0.00016644,2]
[346731835,1735254638784,-500.0,0.00016644,2]
[346731837,1735254638795,-500.0,0.00016644,2]
[346731839,1735254638804,-500.0,0.00016644,2]
[346731840,1735254638813,-500.0,0.00016644,2]
[346731842,1735254638823,-500.0,0.00016644,2]
[346731843,1735254638831,-641.61,0.00016644,2]
[346731845,1735254638842,-500.0,0.00016644,2]
[346731847,1735254638851,-500.0,0.00016644,2]
[346731848,1735254638859,-500.0,0.00016644,2]
[346731850,1735254638868,-1801.89,0.00016644,2]
[346731851,1735254638877,-500.0,0.00016644,2]
[346731853,1735254638887,-892.4,0.00016644,2]
[346731855,1735254638896,-4266.07,0.00016644,2]
[346731856,1735254638905,-500.0,0.00016644,2]
[346731858,1735254638915,-500.0,0.00016644,2]
[346731859,1735254638924,-405.74388794,0.00016644,2]
[346731861,1735254638934,-500.0,0.00016646,2]
[346731863,1735254638943,-500.0,0.00016646,2]
[346731864,1735254638952,-500.0,0.00016646,2]
[346731866,1735254638961,-500.0,0.00016646,2]
[346731868,1735254638971,-500.0,0.00016646,2]
[346731869,1735254638979,-500.0,0.00016646,2]
[346731871,1735254638989,-500.0,0.00016646,2]
[346731872,1735254638998,-500.0,0.00016646,2]
[346731874,1735254639007,-500.0,0.00016646,2]
[346731876,1735254639016,-500.0,0.00016646,2]
[346731877,1735254639026,-500.0,0.00016646,2]
[346731879,1735254639035,-500.0,0.00016646,2]
[346731881,1735254639045,-500.0,0.00016646,2]
[346731882,1735254639054,-500.0,0.00016646,2]
[346731884,1735254639063,-500.0,0.00016646,2]
[346731885,1735254639072,-500.0,0.00016646,2]
[346731887,1735254639082,-378.41333427,0.00016646,2]
[346731889,1735254639091,-500.0,0.00016646,2]
[346731890,1735254639100,-501.18025195,0.00016646,2]
[346731892,1735254639109,-500.0,0.00016646,2]
[346731894,1735254639118,-500.0,0.00016646,2]
[346731895,1735254639127,-500.0,0.00016646,2]
[346731897,1735254639137,-500.0,0.00016646,2]
[346731898,1735254639147,-500.0,0.00016646,2]
[346731900,1735254639157,-500.0,0.00016646,2]
[346731902,1735254639166,-500.0,0.00016646,2]
[346731903,1735254639175,-500.0,0.00016646,2]
[346731905,1735254639185,-275.66278501,0.00016646,2]
[346731907,1735254639194,-500.0,0.00016646,2]
[346731908,1735254639203,-500.0,0.00016646,2]
[346731910,1735254639212,-500.0,0.00016646,2]
[346731911,1735254639222,-500.0,0.00016646,2]
[346731913,1735254639231,-500.0,0.00016646,2]
[346731915,1735254639240,-500.0,0.00016646,2]
[346731916,1735254639249,-500.0,0.00016646,2]
[346731918,1735254639259,-500.0,0.00016646,2]
[346731920,1735254639271,-697.62,0.00016646,2]
[346731921,1735254639281,-500.0,0.00016646,2]
[346731923,1735254639291,-500.0,0.00016646,2]
[346731925,1735254639301,-500.0,0.00016646,2]
[346731926,1735254639311,-500.0,0.00016646,2]
[346731928,1735254639321,-500.0,0.00016646,2]
[346731930,1735254639331,-500.0,0.00016646,2]
[346731931,1735254639341,-500.0,0.00016646,2]
[346731933,1735254639351,-500.0,0.00016646,2]
[346731935,1735254639360,-500.0,0.00016646,2]
[346731936,1735254639370,-500.0,0.00016646,2]
[346731938,1735254639379,-500.0,0.00016646,2]
[346731941,1735254639388,-793.70757977,0.00016646,2]
[346732041,1735254641128,-801.13242023,0.00016646,2]
[346732053,1735254641242,-500.0,0.00016646,2]
[346732055,1735254641251,-500.0,0.00016646,2]
[346732057,1735254641261,-35.49024387,0.00016646,2]
[346732233,1735254643011,-500.0,0.00016598,2]
[346732235,1735254643020,-449.88963054,0.00016646,2]
[346732237,1735254643030,-94.49876287,0.00016646,2]
[346732605,1735255642129,-400.0,0.00013973,2]
[346732606,1735255642152,-300.0,0.00014833,2]
[346732607,1735255642175,-300.0,0.00014833,2]
[346732608,1735255642197,-8903.78203253,0.00014834,2]
[346732609,1735255645109,-378.08040432,0.00014834,2]
[346732610,1735255649088,-614.36834466,0.00014834,2]
[346732611,1735255650098,-9416.25676589,0.00014834,2]
[346732620,1735255743592,-1302.0277777,0.00013497,2]
[346732621,1735255743623,-718.60767846,0.00013497,2]
[346732625,1735255748182,-2134.91204638,0.00013497,2]
[346732626,1735255748204,-500.0,0.00014833,2]
[346732627,1735255748226,-504.63342108,0.00014833,2]
[346732628,1735255748248,-300.0,0.00014833,2]
[346732629,1735255748270,-300.0,0.00014833,2]
[346732630,1735255748291,-5587.5124526,0.00014834,2]
[346732631,1735255748313,-500.0,0.00015107,2]
[346732632,1735255748334,-207.92527502,0.00015261,2]
[346732633,1735255748355,-172.890133,0.00015362,2]
[346732634,1735255748376,-500.0,0.00015381,2]
[346732635,1735255748398,-825.57882203,0.00015595,2]
[346732636,1735255748420,-500.0,0.00015655,2]
[346732637,1735255748440,-162.21534177,0.00015695,2]
[346732638,1735255748460,-500.0,0.00015695,2]
[346732639,1735255748480,-256.1497898,0.00015695,2]
[346732640,1735255748503,-500.0,0.00015695,2]
[346732641,1735255748525,-2199.21,0.00015695,2]
[346732642,1735255748546,-500.0,0.00015695,2]
[346732643,1735255748568,-792.59,0.00015695,2]
[346732644,1735255748589,-558.4,0.00015695,2]
[346732645,1735255748610,-500.0,0.00015695,2]
[346732646,1735255748630,-500.0,0.00015695,2]
[346732647,1735255748651,-500.0,0.00015695,2]
[346732648,1735255748671,-312.14642382,0.00015695,2]
[346732649,1735255748692,-500.0,0.00015695,2]
[346732650,1735255748712,-500.0,0.00015695,2]
[346732651,1735255748732,-400.0,0.00015695,2]
[346732652,1735255748755,-175.12629401,0.00015695,2]
[346732653,1735255748779,-500.0,0.00015695,2]
[346732654,1735255748802,-198.29024538,0.00015695,2]
[346732655,1735255748829,-200.0,0.00015695,2]
[346732656,1735255748854,-500.0,0.00015695,2]
[346732657,1735255748877,-500.0,0.00015695,2]
[346732658,1735255748900,-500.0,0.00015695,2]
[346732659,1735255748922,-206.44002352,0.00015695,2]
[346732660,1735255748943,-500.0,0.00015695,2]
[346732661,1735255748967,-500.0,0.00015695,2]
[346732662,1735255748991,-310.59736752,0.00015695,2]
[346732663,1735255749014,-500.0,0.00015695,2]
[346732664,1735255749036,-500.0,0.00015695,2]
[346732665,1735255749059,-500.0,0.00015695,2]
[346732666,1735255749081,-500.0,0.00015695,2]
[346732667,1735255749103,-500.0,0.00015695,2]
[346732668,1735255749129,-500.0,0.00015695,2]
[346732669,1735255749151,-500.0,0.00015695,2]
[346732670,1735255749172,-224.90000341,0.00015695,2]
[346732671,1735255749194,-500.0,0.00015695,2]
[346732672,1735255749216,-500.0,0.00015695,2]
[346732673,1735255749239,-500.0,0.00015695,2]
[346732674,1735255749263,-500.0,0.00015695,2]
[346732675,1735255749286,-500.0,0.00015695,2]
[346732676,1735255749308,-500.0,0.00015695,2]
[346732677,1735255749331,-500.0,0.00015695,2]
[346732678,1735255749354,-610.96005944,0.00015695,2]
[346732679,1735255749378,-500.0,0.00015695,2]
[346732680,1735255749401,-500.0,0.00015695,2]
[346732681,1735255749425,-500.0,0.00015695,2]
[346732682,1735255749566,-500.0,0.00015695,2]
[346732683,1735255749621,-500.0,0.00015695,2]
[346732684,1735255749666,-500.0,0.00015695,2]
[346732685,1735255749689,-10422.18,0.00015695,2]
[346732686,1735255749710,-256.73304083,0.00015695,2]
[346732687,1735255749733,-500.0,0.00015695,2]
[346732688,1735255749758,-500.0,0.00015695,2]
[346732689,1735255749782,-500.0,0.00015695,2]
[346732690,1735255749805,-500.0,0.00015695,2]
[346732691,1735255749831,-250.0,0.00015695,2]
[346732692,1735255749854,-500.0,0.00015695,2]
[346732693,1735255749876,-500.0,0.00015696,2]
[346732694,1735255749900,-500.0,0.00015696,2]
[346732695,1735255749921,-500.0,0.00015696,2]
[346732696,1735255749942,-403.36272223,0.00015696,2]
[346732697,1735255749962,-500.0,0.00015696,2]
[346732698,1735255749982,-500.0,0.00015696,2]
[346732699,1735255750003,-500.0,0.00015696,2]
[346732700,1735255750023,-500.0,0.00015696,2]
[346732701,1735255750044,-500.0,0.00015696,2]
[346732702,1735255750065,-500.0,0.00015696,2]
[346732703,1735255750085,-500.0,0.00015696,2]
[346732704,1735255750106,-500.0,0.00015696,2]
[346732705,1735255750128,-500.0,0.00015696,2]
[346732706,1735255750149,-500.0,0.00015696,2]
[346732707,1735255750170,-500.0,0.00015696,2]
[346732708,1735255750190,-500.0,0.00015696,2]
[346732709,1735255750210,-500.0,0.00015696,2]
[346732710,1735255750233,-500.0,0.00015696,2]
[346732711,1735255750253,-500.0,0.00015696,2]
[346732712,1735255750273,-500.0,0.00015696,2]
[346732713,1735255750293,-500.0,0.00015696,2]
[346732714,1735255750313,-500.0,0.00015696,2]
[346732715,1735255750336,-500.0,0.00015696,2]
[346732716,1735255750371,-500.0,0.00015696,2]
[346732717,1735255750401,-500.0,0.00015696,2]
[346732718,1735255750435,-500.0,0.00015696,2]
[346732719,1735255750470,-500.0,0.00015696,2]
[346732720,1735255750503,-500.0,0.00015696,2]
[346732721,1735255750534,-500.0,0.00015696,2]
[346732722,1735255750561,-500.0,0.00015696,2]
[346732723,1735255750593,-500.0,0.00015696,2]
[346732724,1735255750625,-500.0,0.00015696,2]
[346732725,1735255750653,-500.0,0.00015696,2]
[346732726,1735255750683,-500.0,0.00015696,2]
[346732727,1735255750710,-500.0,0.00015696,2]
[346732728,1735255750738,-500.0,0.00015696,2]
[346732729,1735255750764,-500.0,0.00015696,2]
[346732730,1735255750792,-500.0,0.00015696,2]
[346732731,1735255750823,-500.0,0.00015696,2]
[346732732,1735255750851,-500.0,0.00015696,2]
[346732733,1735255750879,-500.0,0.00015696,2]
[346732734,1735255750908,-500.0,0.00015696,2]
[346732735,1735255750935,-207.71240534,0.00015696,2]
[346732736,1735255750963,-500.0,0.00015696,2]
[346732737,1735255750992,-500.0,0.00015696,2]
[346732738,1735255751020,-500.0,0.00015696,2]
[346732739,1735255751048,-500.0,0.00015696,2]
[346732740,1735255751076,-500.0,0.00015696,2]
[346732741,1735255751105,-500.0,0.00015696,2]
[346732742,1735255751133,-794.74,0.00015696,2]
[346732743,1735255751159,-500.0,0.00015696,2]
[346732744,1735255751187,-500.0,0.00015696,2]
[346732745,1735255751216,-500.0,0.00015696,2]
[346732746,1735255751244,-500.0,0.00015696,2]
[346732747,1735255751274,-500.0,0.00015696,2]
[346732748,1735255751413,-500.0,0.00015696,2]
[346732749,1735255751439,-500.0,0.00015696,2]
[346732750,1735255751462,-500.0,0.00015696,2]
[346732751,1735255751482,-497.93768569,0.00015696,2]
[346732752,1735255751504,-500.0,0.00015696,2]
[346732753,1735255751526,-500.0,0.00015696,2]
[346732754,1735255751548,-500.0,0.00015696,2]
[346732755,1735255751569,-861.59,0.00015696,2]
[346732756,1735255751590,-500.0,0.00015696,2]
[346732757,1735255751610,-500.0,0.00015696,2]
[346732758,1735255751631,-500.0,0.00015696,2]
[346732759,1735255751652,-500.0,0.00015696,2]
[346732760,1735255751672,-500.0,0.00015696,2]
[346732761,1735255751692,-500.0,0.00015696,2]
[346732762,1735255751714,-500.0,0.00015696,2]
[346732763,1735255751734,-550.64,0.00015696,2]
[346732764,1735255751759,-500.0,0.00015696,2]
[346732765,1735255751780,-1245.51,0.00015696,2]
[346732766,1735255751802,-500.0,0.00015696,2]
[346732767,1735255751826,-351.19,0.00015696,2]
[346732768,1735255751847,-342.59447154,0.00015696,2]
[346732769,1735255751868,-304.32841594,0.00015696,2]
[346732770,1735255765117,-175.317587,0.00014959,2]
[346732771,1735255765140,-195.67158406,0.00015696,2]
[346732772,1735255765162,-500.0,0.00015696,2]
[346732773,1735255765185,-500.0,0.00015696,2]
[346732774,1735255765207,-364.71832481,0.00015696,2]
[346732775,1735255765236,-135.28167519,0.00015696,2]
[346732776,1735255765261,-500.0,0.00015696,2]
[346732777,1735255765282,-487.08507469,0.00015696,2]
[346732778,1735255767118,-12.91492531,0.00015696,2]
[346732779,1735255767140,-500.0,0.00015696,2]
[346732780,1735255767161,-500.0,0.00015696,2]
[346732781,1735255767182,-1146.77,0.00015696,2]
[346732782,1735255767204,-500.0,0.00015696,2]
[346732783,1735255767224,-500.0,0.00015696,2]
[346732784,1735255767246,-168.0,0.00015696,2]
[346732785,1735255767270,-513.18,0.00015696,2]
[346732786,1735255767291,-500.0,0.00015696,2]
[346732787,1735255767315,-500.0,0.00015696,2]
[346732788,1735255767338,-500.0,0.00015696,2]
[346732789,1735255767362,-500.0,0.00015696,2]
[346732790,1735255767383,-271.55794129,0.00015696,2]
[346732791,1735255767406,-500.0,0.00015696,2]
[346732792,1735255767432,-500.0,0.00015696,2]
[346732793,1735255767456,-500.0,0.00015696,2]
[346732794,1735255767479,-500.0,0.00015696,2]
[346732795,1735255767501,-895.6,0.00015696,2]
[346732796,1735255767523,-500.0,0.00015696,2]
[346732797,1735255767545,-500.0,0.00015696,2]
[346732798,1735255767567,-500.0,0.00015696,2]
[346732799,1735255767589,-1236.44,0.00015696,2]
[346732800,1735255767613,-500.0,0.00015696,2]
[346732801,1735255767636,-500.0,0.00015696,2]
[346732802,1735255767658,-500.0,0.00015696,2]
[346732803,1735255767683,-500.0,0.00015696,2]
[346732804,1735255767707,-500.0,0.00015696,2]
[346732805,1735255767729,-500.0,0.00015696,2]
[346732806,1735255767748,-500.0,0.00015696,2]
[346732808,1735255767768,-500.0,0.00015696,2]
[346732809,1735255767788,-500.0,0.00015696,2]
[346732810,1735255767904,-1362.43941072,0.00015696,2]
[346732811,1735255769188,-470.74058928,0.00015696,2]
[346732812,1735255769209,-500.0,0.00015696,2]
[346732813,1735255769230,-768.86,0.00015696,2]
[346732814,1735255769251,-500.0,0.00015696,2]
[346732815,1735255769273,-500.0,0.00015696,2]
[346732816,1735255769295,-500.0,0.00015696,2]
[346732817,1735255769317,-559.57448212,0.00015696,2]
[346732818,1735255769339,-500.0,0.00015696,2]
[346732819,1735255769360,-500.0,0.00015696,2]
[346732820,1735255769381,-500.0,0.00015696,2]
[346732821,1735255769402,-500.0,0.00015696,2]
[346732822,1735255769424,-502.3,0.00015696,2]
[346732823,1735255769447,-500.0,0.00015696,2]
[346732824,1735255769471,-867.9,0.00015696,2]
[346732825,1735255769493,-500.0,0.00015696,2]
[346732826,1735255769516,-500.0,0.00015696,2]
[346732827,1735255769538,-500.0,0.00015696,2]
[346732828,1735255769560,-1067.07,0.00015696,2]
[346732829,1735255769582,-503.03649116,0.00015696,2]
[346732830,1735255769602,-320.84200167,0.00015696,2]
[346732831,1735255769624,-500.0,0.00015696,2]
[346732832,1735255769646,-500.0,0.00015696,2]
[346732833,1735255769667,-274.8433053,0.00015696,2]
[346732834,1735255769689,-500.0,0.00015696,2]
[346732835,1735255769709,-500.0,0.00015696,2]
[346732836,1735255769730,-500.0,0.00015696,2]
[346732837,1735255769754,-500.0,0.00015696,2]
[346732838,1735255769775,-500.0,0.00015696,2]
[346732839,1735255769797,-632.24,0.00015696,2]
[346732840,1735255769822,-1618.58,0.00015696,2]
[346732841,1735255769843,-500.0,0.00015696,2]
[346732842,1735255769866,-500.0,0.00015696,2]
[346732843,1735255769887,-500.0,0.00015696,2]
[346732844,1735255769909,-2898.9,0.00015696,2]
[346732845,1735255769931,-500.0,0.00015696,2]
[346732846,1735255769953,-500.0,0.00015696,2]
[346732847,1735255769976,-529.77,0.00015696,2]
[346732848,1735255769999,-500.0,0.00015696,2]
[346732849,1735255770020,-500.0,0.00015696,2]
[346732850,1735255770041,-500.0,0.00015696,2]
[346732851,1735255770063,-500.0,0.00015696,2]
[346732852,1735255770084,-500.0,0.00015696,2]
[346732853,1735255770105,-500.0,0.00015696,2]
[346732854,1735255770128,-36561.42,0.00015696,2]
[346732855,1735255770149,-500.0,0.00015696,2]
[346732856,1735255770171,-500.0,0.00015696,2]
[346732857,1735255770192,-1001.87,0.00015696,2]
[346732858,1735255770214,-500.0,0.00015696,2]
[346732859,1735255770235,-1472.44,0.00015696,2]
[346732860,1735255770258,-500.0,0.00015696,2]
[346732861,1735255770280,-1041.62,0.00015696,2]
[346732862,1735255770301,-848.55,0.00015696,2]
[346732863,1735255770324,-1532.25,0.00015696,2]
[346732864,1735255770345,-733.04,0.00015696,2]
[346732865,1735255770367,-1485.66,0.00015696,2]
[346732866,1735255770388,-500.0,0.00015696,2]
[346732867,1735255770411,-1305.92,0.00015696,2]
[346732868,1735255770433,-500.0,0.00015696,2]
[346732869,1735255770453,-500.0,0.00015696,2]
[346732870,1735255770476,-500.0,0.00015696,2]
[346732871,1735255770496,-500.0,0.00015696,2]
[346732872,1735255770520,-474.24223891,0.00015696,2]
[346732873,1735255773091,-25.75776109,0.00015696,2]
[346732874,1735255773115,-500.0,0.00015696,2]
[346732875,1735255773140,-738.47,0.00015696,2]
[346732876,1735255773162,-500.0,0.00015696,2]
[346732877,1735255773185,-500.0,0.00015696,2]
[346732878,1735255773209,-500.0,0.00015697,2]
[346732879,1735255773232,-500.0,0.00015697,2]
[346732880,1735255773254,-500.0,0.00015697,2]
[346732881,1735255773278,-500.0,0.00015697,2]
[346732882,1735255773299,-500.0,0.00015697,2]
[346732883,1735255773322,-500.0,0.00015697,2]
[346732884,1735255773345,-500.0,0.00015697,2]
[346732885,1735255773367,-744.75,0.00015697,2]
[346732886,1735255773389,-162.32019535,0.00015697,2]
[346732887,1735255773411,-500.0,0.00015697,2]
[346732888,1735255773433,-500.0,0.00015697,2]
[346732889,1735255773456,-500.0,0.00015697,2]
[346732890,1735255773478,-500.0,0.00015697,2]
[346732891,1735255773500,-500.0,0.00015697,2]
[346732892,1735255773525,-500.0,0.00015697,2]
[346732893,1735255773547,-500.0,0.00015697,2]
[346732894,1735255773568,-500.0,0.00015697,2]
[346732895,1735255773588,-500.0,0.00015697,2]
[346732896,1735255773609,-504.08020372,0.00015697,2]
[346732897,1735255773631,-504.69334862,0.00015697,2]
[346732898,1735255773653,-500.0,0.00015697,2]
[346732899,1735255773674,-500.0,0.00015697,2]
[346732900,1735255773697,-500.0,0.00015697,2]
[346732901,1735255773718,-500.0,0.00015697,2]
[346732902,1735255773741,-500.0,0.00015697,2]
[346732903,1735255773763,-500.0,0.00015697,2]